[Event "31st Kavala Open-A 2022"]
[Site "Kavala"]
[Date "2022.08.02"]
[Round "9.12"]
[White "Maltsevskaya, Aleksandra"]
[Black "Markidis, Konstantinos"]
[Result "1-0"]
[ECO "C12"]
[WhiteElo "2378"]
[BlackElo "2259"]
[Annotator "RC"]
[PlyCount "67"]
[EventDate "2022.07.27"]
[EventType "swiss"]
[EventCountry "GRE"]
[SourceTitle "playchess.com"]
[Source "ChessBase"]
[SourceQuality "1"]
[TimeControl "40/5400+30:1800+30"]

1. e4 {[%emt 0:01:44]} e6 {[%emt 0:02:53]} 2. d4 {[%emt 0:00:09]} d5 {[%emt 0:00:08]} 3. Nc3 {[%emt 0:00:05]} Nf6 {[%emt 0:00:22]} 4. Bg5 {[%emt 0:00:25]} Bb4 {[%emt 0:00:07]} 5. e5 {[%emt 0:01:51]} h6 {[%emt 0:00:10]} 6. Bc1 {[%emt 0:00:06]} Ne4 {[%emt 0:00:08]} 7. Qg4 {[%emt 0:02:23]} Kf8 {[%emt 0:00:28]} 8. Bd3 {[%emt 0:07:52]} Nxc3 {[%emt 0:11:33]} 9. Bd2 {[%emt 0:01:14]} b6 {[%emt 0:14:32]} 10. bxc3 {[%emt 0:04:20]} Be7 {[%emt 0:00:35]} 11. h4 {[%emt 0:00:41]} Ba6 {[%emt 0:01:45]} 12. Ne2 {[%emt 0:02:40]} Bxd3 {[%emt 0:01:15]} 13. cxd3 {[%emt 0:00:07]} h5 {[%emt 0:05:07]} 14. Qf3 {[%emt 0:00:43]} Ke8 {[%emt 0:06:14]} 15. Nf4 {[%emt 0:03:48]} g6 {[%emt 0:02:26]} 16. Ke2 {[%emt 0:06:21]} c5 {[%emt 0:01:11]} 17. g4 {[%emt 0:00:40]} hxg4 {[%emt 0:02:15]} 18. Qxg4 {[%emt 0:00:06]} Nc6 {[%emt 0:01:17]} 19. Be3 {[%emt 0:02:04]} cxd4 {[%emt 0:03:34]} 20. cxd4 {[%emt 0:00:12]} Rc8 {[%emt 0:09:19]} 21. Rac1 {[%emt 0:06:00]} Qd7 {[%emt 0:21:05]} 22. h5 {[%emt 0:01:18]} g5 {[%emt 0:03:02]} 23. Nh3 {[%emt 0:00:10]} Nb4 {[%emt 0:05:07]} 24. Nxg5 {[%emt 0:05:02]} Rxc1 {[%emt 0:03:01]} 25. Rxc1 {[%emt 0:02:16]} Qb5 {[%emt 0:01:56]} 26. Rc8+ {[%emt 0:06:04]} Kd7 {[%emt 0:00:06]} 27. Rxh8 {[%emt 0:00:16]} Qxd3+ {[%emt 0:00:55]} 28. Kf3 {[%emt 0:00:07]} Qd1+ {[%emt 0:01:27]} 29. Kg3 {[%emt 0:00:06]} Qg1+ {[%emt 0:00:30]} 30. Kh4 {[%emt 0:00:07]} Qh1+ {[%emt 0:01:54]} 31. Qh3 {[%emt 0:00:07]} Qe4+ {[%emt 0:00:33]} 32. Kg3 {[%emt 0:00:12]} Bxg5 {[%emt 0:00:31]} 33. Bxg5 {[%emt 0:00:06]} Nd3 {[%emt 0:00:33]} 34. Rf8 {[%emt 0:01:23]} 1-0

[Event "31st Kavala Open-A 2022"]
[Site "Kavala"]
[Date "2022.08.02"]
[Round "9.13"]
[White "Tarhan, Adar"]
[Black "Celik, Hasan Huseyin"]
[Result "1/2-1/2"]
[ECO "C07"]
[WhiteElo "2201"]
[BlackElo "2363"]
[Annotator "RC"]
[PlyCount "64"]
[EventDate "2022.07.27"]
[EventType "swiss"]
[EventCountry "GRE"]
[SourceTitle "playchess.com"]
[Source "ChessBase"]
[SourceQuality "1"]
[TimeControl "40/5400+30:1800+30"]

1. e4 {[%emt 0:00:03]} e6 {[%emt 0:00:04]} 2. d4 {[%emt 0:00:04]} d5 {[%emt 0:00:03]} 3. Nd2 {[%emt 0:00:04]} c5 {[%emt 0:00:03]} 4. Ngf3 {[%emt 0:00:06]} cxd4 {[%emt 0:00:04]} 5. exd5 {[%emt 0:00:15]} Qxd5 {[%emt 0:00:06]} 6. Bc4 {[%emt 0:00:11]} Qd6 {[%emt 0:00:04]} 7. O-O {[%emt 0:01:18]} Nf6 {[%emt 0:00:04]} 8. Nb3 {[%emt 0:00:05]} Nc6 {[%emt 0:00:04]} 9. Nbxd4 {[%emt 0:00:06]} Nxd4 {[%emt 0:00:05]} 10. Nxd4 {[%emt 0:00:19]} a6 {[%emt 0:00:05]} 11. c3 {[%emt 0:02:54]} Be7 {[%emt 0:00:06]} 12. Qf3 {[%emt 0:02:50]} O-O {[%emt 0:00:11]} 13. Bb3 {[%emt 0:00:23]} Qc7 {[%emt 0:14:58]} 14. Bf4 {[%emt 0:02:11]} e5 {[%emt 0:00:28]} 15. Bg3 {[%emt 0:00:04]} Bg4 {[%emt 0:00:05]} 16. Qd3 {[%emt 0:00:07]} Rad8 {[%emt 0:11:06]} 17. Rfe1 {[%emt 0:00:07]} Bd6 {[%emt 0:00:27]} 18. Nf5 {[%emt 0:00:11]} Bxf5 {[%emt 0:00:05]} 19. Qxf5 {[%emt 0:00:04]} e4 {[%emt 0:00:06]} 20. Rad1 {[%emt 0:28:07]} Bxg3 {[%emt 0:00:13]} 21. hxg3 {[%emt 0:00:06]} Rxd1 {[%emt 0:00:14]} 22. Rxd1 {[%emt 0:00:04]} e3 {[%emt 0:04:57]} 23. fxe3 {[%emt 0:03:18]} Qxg3 {[%emt 0:00:28]} 24. Qf4 {[%emt 0:01:36]} Qg6 {[%emt 0:02:52]} 25. Qf3 {[%emt 0:00:58]} Qg5 {[%emt 0:01:20]} 26. Rd3 {[%emt 0:01:31]} b5 {[%emt 0:06:37]} 27. Qf4 {[%emt 0:06:48]} Qg6 {[%emt 0:04:32]} 28. Bc2 {[%emt 0:00:46]} Re8 {[%emt 0:01:00]} 29. Rd2 {[%emt 0:01:43]} Qh5 {[%emt 0:00:42]} 30. Bf5 {[%emt 0:00:56]} g6 {[%emt 0:10:01]} 31. Rd6 {[%emt 0:06:21]} gxf5 {[%emt 0:03:18]} 32. Rxf6 {[%emt 0:03:27]} Qd1+ {[%emt 0:00:48]} 1/2-1/2

[Event "31st Kavala Open-A 2022"]
[Site "Kavala"]
[Date "2022.08.02"]
[Round "9.14"]
[White "Koutlas, Nikolaos"]
[Black "Stefanou, Dimitrios"]
[Result "1/2-1/2"]
[ECO "C94"]
[WhiteElo "2314"]
[BlackElo "2184"]
[Annotator "RC"]
[PlyCount "76"]
[EventDate "2022.07.27"]
[EventType "swiss"]
[EventCountry "GRE"]
[SourceTitle "playchess.com"]
[Source "ChessBase"]
[SourceQuality "1"]
[TimeControl "40/5400+30:1800+30"]

1. e4 {[%emt 0:00:23]} e5 {[%emt 0:01:08]} 2. Nf3 {[%emt 0:00:30]} Nc6 {[%emt 0:00:28]} 3. Bb5 {[%emt 0:00:13]} a6 {[%emt 0:00:11]} 4. Ba4 {[%emt 0:00:05]} Nf6 {[%emt 0:00:17]} 5. O-O {[%emt 0:00:06]} Be7 {[%emt 0:00:11]} 6. Re1 {[%emt 0:00:23]} b5 {[%emt 0:00:08]} 7. Bb3 {[%emt 0:00:01]} d6 {[%emt 0:00:00]} 8. c3 {[%emt 0:00:12]} O-O {[%emt 0:00:21]} 9. h3 {[%emt 0:00:08]} Nb8 {[%emt 0:01:18]} 10. d3 {[%emt 0:00:52]} Nbd7 {[%emt 0:03:01]} 11. Nbd2 {[%emt 0:02:18]} Bb7 {[%emt 0:00:15]} 12. Nf1 {[%emt 0:00:31]} Nc5 {[%emt 0:07:38]} 13. Bc2 {[%emt 0:01:17]} Re8 {[%emt 0:00:58]} 14. Ng3 {[%emt 0:09:25]} Bf8 {[%emt 0:01:45]} 15. Nf5 {[%emt 0:06:42]} d5 {[%emt 0:08:00]} 16. exd5 {[%emt 0:07:06]} Qxd5 {[%emt 0:03:47]} 17. Bg5 {[%emt 0:01:14]} e4 {[%emt 0:23:19]} 18. dxe4 {[%emt 0:21:25]} Qxd1 {[%emt 0:00:09]} 19. Raxd1 {[%emt 0:00:04]} Bxe4 {[%emt 0:08:54]} 20. Bxe4 {[%emt 0:03:59]} Nfxe4 {[%emt 0:09:30]} 21. Bf4 {[%emt 0:06:40]} Na4 {[%emt 0:05:28]} 22. Be5 f6 {[%emt 0:07:33]} 23. Rxe4 {[%emt 0:07:30]} fxe5 {[%emt 0:00:00]} 24. Nxe5 {[%emt 0:09:57]} g6 {[%emt 0:04:24]} 25. Ng3 {[%emt 0:04:05]} Bd6 {[%emt 0:00:00]} 26. Nd3 {[%emt 0:05:43]} Bxg3 {[%emt 0:00:00]} 27. Rxe8+ {[%emt 0:00:01]} Rxe8 {[%emt 0:00:00]} 28. fxg3 {[%emt 0:00:05]} Re2 {[%emt 0:01:00]} 29. Kf1 {[%emt 0:03:02]} Rc2 {[%emt 0:01:56]} 30. a3 {[%emt 0:03:16]} c5 {[%emt 0:05:46]} 31. b3 {[%emt 0:00:55]} Nxc3 {[%emt 0:00:25]} 32. Re1 {[%emt 0:00:29]} c4 {[%emt 0:03:43]} 33. bxc4 {[%emt 0:00:05]} bxc4 {[%emt 0:00:04]} 34. Nb4 {[%emt 0:00:06]} Rb2 {[%emt 0:01:03]} 35. Nxa6 {[%emt 0:02:21]} Nd5 {[%emt 0:00:38]} 36. Nb4 {[%emt 0:01:38]} Nxb4 {[%emt 0:00:48]} 37. axb4 {[%emt 0:00:05]} Rxb4 {[%emt 0:00:08]} 38. Re4 {[%emt 0:02:35]} Kf7 {[%emt 0:01:27]} 1/2-1/2

[Event "31st Kavala Open-A 2022"]
[Site "Kavala"]
[Date "2022.08.02"]
[Round "9.16"]
[White "Triantos, Konstantinos"]
[Black "Charkhalashvili, Inga"]
[Result "1/2-1/2"]
[ECO "B13"]
[WhiteElo "2210"]
[BlackElo "2276"]
[Annotator "NA RC"]
[PlyCount "79"]
[EventDate "2022.07.27"]
[EventType "swiss"]
[EventCountry "GRE"]
[SourceTitle "playchess.com"]
[Source "ChessBase"]
[SourceQuality "1"]
[TimeControl "40/5400+30:1800+30"]

1. e4 {[%emt 0:04:30]} c6 {[%emt 0:00:06]} 2. d4 {[%emt 0:00:28]} d5 {[%emt 0:00:06]} 3. exd5 {[%emt 0:00:03]} cxd5 {[%emt 0:00:04]} 4. Bd3 {[%emt 0:00:03]} Nc6 {[%emt 0:00:05]} 5. c3 {[%emt 0:00:03]} Nf6 {[%emt 0:00:30]} 6. h3 {[%emt 0:00:11]} g6 {[%emt 0:01:52]} 7. Nf3 {[%emt 0:00:36]} Bf5 {[%emt 0:00:17]} 8. O-O {[%emt 0:02:24] 8.Be2 is the modern continuation.} Bxd3 {[%emt 0:00:49]} 9. Qxd3 {[%emt 0:00:05]} Bg7 {[%emt 0:00:02]} 10. Na3 {[%emt 0:00:55]} O-O {[%emt 0:00:16]} 11. Bf4 {[%emt 0:05:55]} a6 {[%emt 0:02:30]} 12. Nc2 {[%emt 0:00:16] [#]} Rc8 $146 {[%emt 0:02:07]} ({Predecessor:} 12... e6 13. Ne3 Re8 14. Ng4 Ne4 15. Rfe1 Rc8 16. Re2 Bf8 17. Rae1 f6 18. h4 h5 {½-½ (53) Divya,D (2126)-Pershin,D (2400) Moscow 2019}) 13. Ne3 {[%emt 0:02:52]} Qb6 {[%emt 0:03:01]} 14. Rab1 {[%emt 0:08:07]} e6 {[%emt 0:05:57]} 15. Ng4 {[%emt 0:06:43]} Ne4 {[%emt 0:12:13]} 16. Nge5 {[%emt 0:13:09]} Rfd8 {[%emt 0:02:44]} 17. Nxc6 {[%emt 0:01:11]} Qxc6 {[%emt 0:03:51]} 18. Ne5 {[%emt 0:08:42]} Bxe5 {[%emt 0:07:31]} 19. Bxe5 {[%emt 0:00:10]} Qc4 {[%emt 0:03:02]} 20. Qxc4 {[%emt 0:03:28]} Rxc4 {[%emt 0:00:58]} 21. Rbd1 {[%emt 0:01:31]} f6 $11 {[%emt 0:08:22]} 22. Bf4 {[%emt 0:02:08]} b5 {[%emt 0:00:49]} 23. Rfe1 {[%emt 0:00:45]} Kf7 {[%emt 0:03:47]} 24. f3 {[%emt 0:12:35]} Nd6 {[%emt 0:00:09]} 25. Re2 {[%emt 0:00:34]} Nc8 {[%emt 0:02:38]} 26. Bd2 {[%emt 0:00:38]} Rc6 {[%emt 0:03:51]} 27. Kf2 {[%emt 0:05:11]} Nb6 {[%emt 0:00:45]} 28. b3 {[%emt 0:00:02]} a5 {[%emt 0:01:43]} 29. Ke3 {[%emt 0:02:04]} Ra8 {[%emt 0:02:47]} 30. Kd3 {[%emt 0:00:34]} a4 {[%emt 0:01:29]} 31. Ree1 {[%emt 0:01:44]} Nc8 {[%emt 0:06:20]} 32. Rb1 {[%emt 0:01:33]} axb3 {[%emt 0:00:26]} 33. axb3 {[%emt 0:05:58]} Ra2 {[%emt 0:03:07]} 34. Ra1 {[%emt 0:01:11]} Rca6 {[%emt 0:00:09]} 35. Rxa2 {[%emt 0:00:02]} Rxa2 {[%emt 0:00:04]} 36. Rc1 {[%emt 0:01:46]} Ne7 {[%emt 0:09:55]} 37. c4 {[%emt 0:02:21]} bxc4+ {[%emt 0:00:14]} 38. bxc4 {[%emt 0:00:08]} dxc4+ {[%emt 0:00:08]} 39. Rxc4 {[%emt 0:00:09]} Nd5 {[%emt 0:00:03]} 40. Rc2 {[%emt 0:00:00]} 1/2-1/2